bitfinex/quotes_BTCUSD_20220202
["timestamp","ask_amount","ask_price","bid_price","bid_amount"]
[1643835831381,0.30235182,37510.0,37505.0,0.00019808]
[1643835831582,0.08676834,37513.0,37505.0,0.00019808]
[1643835831782,0.08676834,37513.0,37502.0,0.0532]
[1643835832581,0.25586341,37509.0,37502.0,0.0532]
[1643835832783,0.00046154,37511.0,37502.0,0.0532]
[1643835833681,0.25187605,37510.0,37502.0,0.0532]
[1643835833883,0.25187605,37510.0,37502.0,0.29190246]
[1643835834084,0.34177221,37509.0,37505.0,0.00068813]
[1643835835031,0.34177221,37509.0,37502.0,0.0532]
[1643835835232,0.34177221,37509.0,37505.0,0.00022652]
[1643835835734,0.34177221,37509.0,37502.0,0.05310252]
[1643835836537,0.57350841,37509.0,37501.0,0.066654]
[1643835836834,0.57350841,37509.0,37504.0,0.0001981]
[1643835836835,0.72350841,37509.0,37504.0,0.0001981]
[1643835837038,0.72350841,37509.0,37504.0,5.28e-05]
[1643835837039,0.353403,37508.0,37504.0,5.28e-05]
[1643835837238,0.23872096,37507.0,37504.0,5.28e-05]
[1643835837437,0.353403,37506.0,37504.0,5.28e-05]
[1643835837634,0.05,37506.0,37504.0,5.28e-05]
[1643835837835,1.753403,37505.0,37504.0,5.28e-05]
[1643835838036,1.803403,37505.0,37504.0,5.28e-05]
[1643835838283,1.903403,37505.0,37504.0,5.28e-05]
[1643835838684,1.902803,37505.0,37504.0,5.28e-05]
[1643835839690,1.802803,37505.0,37504.0,5.28e-05]
[1643835840084,1.753403,37505.0,37504.0,5.28e-05]
[1643835840287,1.4,37505.0,37504.0,5.28e-05]
[1643835840492,0.2525327,37510.0,37504.0,5.28e-05]
[1643835840685,0.00065665,37510.0,37504.0,5.28e-05]
[1643835841186,0.4143,37511.0,37497.0,0.26650804]
[1643835841386,0.4143,37511.0,37500.0,0.066656]
[1643835841785,0.4143,37511.0,37502.0,0.001]
[1643835842032,0.4143,37511.0,37504.0,0.00019531]
[1643835842237,0.29050427,37509.0,37504.0,0.00019531]
[1643835842535,0.34050427,37509.0,37504.0,0.00019531]
[1643835843333,0.05,37509.0,37504.0,0.00019531]
[1643835843537,0.3643,37511.0,37504.0,0.00019531]
[1643835843735,0.00068502,37510.0,37504.0,0.00019531]
[1643835844534,0.00068502,37510.0,37508.0,0.26826368]
[1643835844742,0.05,37511.0,37508.0,0.26826368]
[1643835844935,0.00068502,37510.0,37508.0,0.26826368]
[1643835845136,0.00068502,37510.0,37504.0,0.00019531]
[1643835845782,0.2763826,37514.0,37504.0,0.00019531]
[1643835846281,0.2763826,37514.0,37507.0,0.31379702]
[1643835846282,0.00068502,37510.0,37507.0,0.31379702]
[1643835847084,0.52429615,37512.0,37507.0,0.31379702]
[1643835847286,0.00068504,37510.0,37507.0,0.31379702]
[1643835848284,0.20339985,37512.0,37507.0,0.31379702]
[1643835848487,0.06937692,37522.0,37508.0,0.006196]
[1643835848488,0.00068504,37510.0,37508.0,0.006196]
[1643835848688,0.00068504,37510.0,37509.0,1.2532]
[1643835848886,0.00068504,37510.0,37509.0,1.259388]
[1643835849286,0.00068504,37510.0,37509.0,1.56132281]
[1643835849536,0.23910684,37520.0,37509.0,1.51632281]
[1643835849736,0.23910684,37520.0,37514.0,0.27419505]
[1643835849936,0.23910684,37520.0,37515.0,0.0532]
[1643835850138,0.53170552,37519.0,37512.0,0.0532]
[1643835850335,0.353403,37518.0,37506.0,0.00019426]
[1643835850534,0.403403,37518.0,37506.0,0.00019426]
[1643835850735,0.066654,37514.0,37506.0,0.00019426]
[1643835851034,0.22555418,37513.0,37506.0,0.00019426]
[1643835851236,0.2559343,37508.0,37506.0,0.00019426]
[1643835851634,0.3059343,37508.0,37506.0,0.00019426]
[1643835851836,0.3059343,37508.0,37503.0,0.00019421]
[1643835852034,0.3059343,37508.0,37503.0,0.00087256]
[1643835852437,0.33771709,37507.0,37503.0,0.00087256]
[1643835853182,0.58384659,37507.0,37503.0,0.00019421]
[1643835853386,0.58384659,37507.0,37503.0,0.00087254]
[1643835853785,0.73384659,37507.0,37503.0,0.00087254]
[1643835853989,0.0532,37506.0,37503.0,0.00087254]
[1643835854187,1.25,37505.0,37496.0,0.00268636]
[1643835854385,1.3032,37505.0,37497.0,0.28197812]
[1643835854583,1.3532,37505.0,37503.0,0.00067833]
[1643835854784,1.003403,37504.0,37503.0,0.00067833]
[1643835854988,0.35,37504.0,37503.0,0.00067833]
[1643835855184,0.4,37504.0,37503.0,0.00067833]
[1643835855384,0.4,37504.0,37503.0,0.00047833]
[1643835855588,0.4,37504.0,37497.0,0.28197812]
[1643835855784,0.35,37504.0,37500.0,0.00063739]
[1643835856785,0.35,37504.0,37498.0,0.066659]
[1643835858434,0.35,37504.0,37497.0,0.28197812]
[1643835859334,0.35,37504.0,37499.0,0.00068515]
[1643835860333,0.35,37504.0,37497.0,0.27697812]
[1643835860537,0.35,37504.0,37500.0,0.00068515]
[1643835861590,0.42515391,37505.0,37498.0,0.066661]
[1643835861787,0.42515391,37505.0,37500.0,0.00068515]
[1643835862793,0.2559343,37508.0,37499.0,0.00019611]
[1643835862990,0.00068504,37506.0,37501.0,0.00068514]
[1643835863890,0.3591343,37508.0,37499.0,0.00019611]
[1643835864089,0.00068505,37506.0,37501.0,0.00068515]
[1643835864943,0.00068505,37506.0,37503.0,0.22795458]
[1643835865145,0.45445824,37513.0,37503.0,0.22795458]
[1643835865146,0.0532,37513.0,37503.0,0.22795458]
[1643835865448,0.00068505,37506.0,37503.0,0.22795458]
[1643835865643,0.00068505,37506.0,37504.0,0.006199]
[1643835865843,0.00068505,37506.0,37504.0,0.006197]
[1643835866045,0.00068505,37506.0,37503.0,0.22795458]
[1643835866243,0.30034592,37512.0,37503.0,0.22795458]
[1643835866445,0.30034592,37512.0,37505.0,0.066648]
[1643835866644,0.00068506,37506.0,37505.0,0.066648]
[1643835866845,0.00068506,37506.0,37504.0,0.133289]
[1643835867546,0.35034592,37512.0,37504.0,0.133289]
[1643835867746,0.00068506,37507.0,37504.0,0.133289]
[1643835868186,0.00068506,37507.0,37505.0,0.28941189]
[1643835868783,0.7524894,37515.0,37505.0,0.28941189]
[1643835868984,0.00068505,37508.0,37505.0,0.28941189]
[1643835869782,0.00068505,37508.0,37503.0,0.13348804]
[1643835869982,0.48973084,37511.0,37503.0,0.13348804]
[1643835870188,0.00068505,37508.0,37503.0,0.13348804]
[1643835871184,0.21319625,37511.0,37503.0,0.13348804]
[1643835871384,0.00068506,37507.0,37503.0,0.13348804]
[1643835871584,0.00068506,37507.0,37503.0,0.133292]
[1643835872246,0.3872,37515.0,37503.0,0.133292]
[1643835872247,0.3872,37515.0,37504.0,0.006196]
[1643835872448,0.56120068,37521.0,37503.0,0.36981214]
[1643835872647,0.13466758,37520.0,37507.0,0.133278]
[1643835872847,0.29527037,37516.0,37508.0,0.28268247]
[1643835873046,0.29527037,37516.0,37507.0,0.133278]
[1643835873047,0.08493994,37511.0,37507.0,0.133278]
[1643835873647,0.08493994,37511.0,37503.0,0.61339478]
[1643835873847,0.13493994,37511.0,37503.0,0.02089478]
[1643835874052,0.26157726,37508.0,37503.0,0.02089478]
[1643835874249,0.31157726,37508.0,37503.0,0.02089478]
[1643835874652,0.56060917,37507.0,37503.0,0.02089478]
[1643835874848,0.353403,37506.0,37503.0,0.02089478]
[1643835875049,0.403403,37506.0,37503.0,0.02089478]
[1643835875247,0.403403,37505.0,37501.0,0.00068489]
[1643835875447,0.05,37505.0,37501.0,0.00068489]
[1643835875685,0.05,37506.0,37501.0,0.00068489]
[1643835875885,0.51962797,37507.0,37496.0,0.28569128]
[1643835876083,0.51962797,37507.0,37501.0,0.00068486]
[1643835876282,0.00068476,37506.0,37501.0,0.00068486]
[1643835876483,0.69948813,37502.0,37501.0,0.00068486]
[1643835876884,0.74948813,37502.0,37501.0,0.00068486]
[1643835877084,0.74948813,37502.0,37496.0,0.33680855]
[1643835877286,0.74948813,37502.0,37500.0,0.00068486]
[1643835877484,0.5,37502.0,37500.0,0.00068486]
[1643835877886,0.05,37502.0,37500.0,0.00068486]
[1643835878087,0.00068474,37506.0,37500.0,0.00068486]
[1643835878287,0.51962797,37507.0,37499.0,0.06666]
[1643835878490,0.22817358,37504.0,37499.0,0.06734487]
[1643835878688,0.27817358,37504.0,37499.0,0.06734487]
[1643835879291,0.05,37504.0,37499.0,0.06734487]
[1643835879534,0.05,37504.0,37499.0,0.06666]
[1643835879737,0.00045934,37506.0,37499.0,0.06666]
[1643835879934,0.46962797,37507.0,37499.0,0.06666]
[1643835880336,0.0532,37508.0,37502.0,0.25937593]
[1643835880535,0.29339294,37511.0,37502.0,0.25937593]
[1643835880536,0.1193,37510.0,37502.0,0.55965677]
[1643835880738,0.02118882,37512.0,37502.0,0.55965677]
[1643835881142,0.02118882,37512.0,37502.0,0.32603193]
[1643835881337,0.34698339,37512.0,37502.0,0.25937593]
[1643835881535,0.34698339,37512.0,37500.0,0.133303]
[1643835881737,0.08021708,37511.0,37501.0,0.00019608]
[1643835882135,0.28234062,37508.0,37502.0,0.00022528]
[1643835882538,0.27734062,37508.0,37503.0,0.30551346]
[1643835882737,0.32734062,37508.0,37503.0,0.30551346]
[1643835882939,0.32734062,37508.0,37502.0,0.00022528]
[1643835883182,0.32734062,37508.0,37501.0,0.00019608]
[1643835883383,0.32802489,37508.0,37502.0,0.00068438]
[1643835884286,0.32734062,37508.0,37501.0,0.24852693]
[1643835884583,0.32802488,37508.0,37502.0,0.00068437]
[1643835884787,0.32802488,37508.0,37503.0,0.066656]
[1643835885184,0.32802488,37508.0,37502.0,0.00068437]
[1643835885588,0.32734062,37508.0,37501.0,0.24852693]
[1643835885787,0.32802488,37508.0,37502.0,0.00068437]
[1643835886194,0.00068426,37508.0,37502.0,0.24763294]
[1643835886391,0.00068426,37508.0,37503.0,0.0062]
[1643835886591,0.00068426,37508.0,37504.0,0.13348902]
[1643835886791,0.02060869,37516.0,37505.0,0.25029863]
[1643835887055,0.00068427,37508.0,37505.0,0.24410363]
[1643835887255,0.00068427,37508.0,37507.0,1.27977598]
[1643835887452,0.00068427,37508.0,37507.0,1.35261198]
[1643835887653,0.00068427,37508.0,37507.0,1.43473743]
[1643835887853,0.01821738,37519.0,37507.0,1.35261198]
[1643835888059,0.01821738,37519.0,37512.0,0.133266]
[1643835888451,0.20040835,37515.0,37512.0,0.133266]
[1643835889154,0.20040835,37515.0,37510.0,0.30972617]
[1643835889355,0.20109258,37515.0,37510.0,0.30972617]
[1643835889554,0.20109258,37515.0,37509.0,0.133276]
[1643835889955,0.37390109,37512.0,37509.0,0.133276]
[1643835890558,0.37390109,37512.0,37509.0,0.40242395]
[1643835891203,0.37390109,37512.0,37509.0,0.133276]
[1643835891407,0.42390109,37512.0,37506.0,0.133287]
[1643835891601,0.42390109,37512.0,37504.0,0.00019602]
[1643835891602,0.52390109,37512.0,37504.0,0.00019602]
[1643835891801,0.52458489,37512.0,37504.0,0.00019602]
[1643835892001,0.52458489,37512.0,37502.0,0.00068399]
[1643835892002,0.20938796,37511.0,37502.0,0.00068399]
[1643835892200,0.23581777,37508.0,37502.0,0.00068399]
[1643835892399,0.22255492,37507.0,37502.0,0.00068399]
[1643835892799,0.22255492,37507.0,37501.0,0.00019585]
[1643835892998,0.22255492,37507.0,37502.0,0.00068392]
[1643835893799,0.22255492,37507.0,37503.0,0.066657]
[1643835895835,0.31197741,37507.0,37503.0,0.066657]
[1643835896835,0.31197741,37507.0,37505.0,0.00019601]
[1643835897736,0.00045858,37508.0,37505.0,0.00019601]
[1643835897938,0.00045858,37508.0,37507.0,0.24051984]
[1643835898593,0.00045858,37508.0,37507.0,0.24670384]
[1643835898795,0.01832113,37515.0,37507.0,0.24051984]
[1643835899003,0.00045858,37509.0,37507.0,0.61016336]
[1643835899199,0.00045858,37509.0,37508.0,0.406191]
[1643835899400,0.00045858,37509.0,37508.0,0.70922966]
[1643835899598,0.00045858,37509.0,37508.0,1.05922966]
[1643835899998,0.34159647,37520.0,37508.0,1.05922966]
[1643835899999,0.20301551,37517.0,37516.0,0.29101585]
[1643835900200,0.0219108,37520.0,37516.0,0.29101585]
[1643835901299,0.21928277,37518.0,37516.0,0.35764485]
[1643835901499,0.21928277,37518.0,37514.0,0.133257]
[1643835901702,0.26928277,37518.0,37511.0,0.133271]
[1643835902337,0.05,37518.0,37511.0,0.133271]
[1643835902539,0.05,37518.0,37516.0,0.27548991]
[1643835902739,0.56381412,37521.0,37511.0,0.133271]
[1643835903140,0.06664,37518.0,37511.0,0.133271]
[1643835903339,0.06664,37518.0,37509.0,0.00019594]
[1643835903340,0.24016261,37516.0,37509.0,0.00019594]
[1643835903640,0.24016261,37516.0,37513.0,0.25109399]
[1643835903839,0.24084612,37516.0,37513.0,0.25109399]
[1643835904643,0.208851,37515.0,37509.0,0.00019594]
[1643835904846,0.258851,37515.0,37509.0,0.00019594]
[1643835905046,0.785059,37514.0,37509.0,0.00019594]
[1643835905244,0.785059,37514.0,37503.0,0.02111576]
[1643835905245,0.6652,37510.0,37503.0,0.02111576]
[1643835905449,2.1652,37504.0,37503.0,0.02111576]
[1643835905690,2.1652,37504.0,37502.0,0.00068377]
[1643835905691,2.0336903,37503.0,37494.0,0.00473564]
[1643835905896,0.06669,37498.0,37484.0,0.0011]
[1643835906097,0.092565,37494.0,37484.0,0.0011]
[1643835906295,2.1652,37485.0,37484.0,0.0011]
[1643835906492,2.648173,37485.0,37484.0,0.0011]
[1643835906691,3.59787181,37485.0,37484.0,0.0011]
[1643835906894,3.77572263,37485.0,37484.0,0.0001]
[1643835907089,1.5,37484.0,37481.0,0.0012]
[1643835907290,0.45603655,37483.0,37481.0,0.0012]
[1643835907488,1.803403,37482.0,37481.0,0.0012]
[1643835907689,1.906603,37482.0,37481.0,0.0012]
[1643835907993,1.5,37479.0,37477.0,0.0101]
[1643835908191,1.5,37479.0,37475.0,0.0111]
[1643835908192,0.0061,37477.0,37475.0,0.0111]
[1643835908392,0.0061,37477.0,37469.0,0.004]
[1643835908393,0.0111,37475.0,37469.0,0.004]
[1643835908691,0.0111,37475.0,37461.0,0.01]
[1643835908692,0.6652,37471.0,37461.0,0.01]
[1643835908891,0.6652,37467.0,37461.0,0.01]
[1643835909094,1.070703,37466.0,37461.0,0.01]
[1643835909295,1.169703,37466.0,37461.0,0.01]
[1643835909743,1.169703,37466.0,37465.0,0.001]
[1643835909946,1.5,37464.0,37458.0,0.00272494]
[1643835910146,0.58350224,37463.0,37458.0,0.00272494]
[1643835910344,0.58350224,37463.0,37451.0,0.005]
[1643835910345,1.50272,37458.0,37451.0,0.005]
[1643835910547,1.9152,37452.0,37451.0,0.005]
[1643835910746,2.78073888,37452.0,37451.0,0.005]
[1643835910944,3.30429284,37452.0,37451.0,0.005]
[1643835911144,2.03302284,37452.0,37451.0,0.005]
[1643835911344,2.03302284,37452.0,37441.0,0.011]
[1643835911345,1.5,37450.0,37441.0,0.011]
[1643835911556,0.6652,37446.0,37441.0,0.011]
[1643835911747,0.6652,37442.0,37431.0,0.01]
[1643835911945,0.6652,37435.0,37431.0,0.01]
[1643835912146,0.63718054,37434.0,37431.0,0.01]
[1643835912343,0.5482549,37427.0,37418.0,0.32024793]
[1643835912546,0.9,37426.0,37418.0,0.32024793]
[1643835912749,0.6652,37423.0,37418.0,0.32024793]
[1643835912944,0.406617,37423.0,37418.0,0.32024793]
[1643835913389,0.48248861,37423.0,37418.0,0.32024793]
[1643835914495,0.0532,37423.0,37421.0,0.007]
[1643835914694,0.02027988,37427.0,37421.0,0.00768011]
[1643835915092,0.02027988,37427.0,37422.0,0.008453]
[1643835915288,0.01956508,37426.0,37422.0,0.008453]
[1643835915489,0.07630775,37424.0,37422.0,0.008453]
[1643835915794,0.07630775,37424.0,37422.0,0.0006801]
[1643835915993,1.88671624,37423.0,37418.0,0.32024793]
[1643835916291,0.21857113,37421.0,37418.0,0.32024793]
[1643835916491,0.353417,37420.0,37418.0,0.32024793]
[1643835916689,0.29098615,37419.0,37418.0,0.32024793]
[1643835916965,0.18108719,37422.0,37418.0,0.32024793]
[1643835917167,0.02136993,37424.0,37419.0,0.00846]
[1643835917369,0.02136993,37424.0,37418.0,0.32024793]
[1643835917867,0.02136993,37424.0,37421.0,0.49879424]
[1643835918066,0.02136993,37424.0,37422.0,0.008453]
[1643835918667,0.02136993,37424.0,37420.0,0.008453]
[1643835918869,0.32039907,37437.0,37425.0,0.36931964]
[1643835919175,0.71464958,37446.0,37426.0,0.28704046]
[1643835919176,0.18108719,37443.0,37426.0,0.28704046]
[1643835919371,0.01815618,37428.0,37426.0,0.44024046]
[1643835919671,0.66144958,37446.0,37433.0,0.28440253]
[1643835919672,0.00067848,37442.0,37433.0,0.28440253]
[1643835919870,0.00067848,37442.0,37434.0,0.30572892]
[1643835920070,0.00067848,37442.0,37435.0,0.0532]
[1643835920467,0.25207787,37437.0,37435.0,0.0532]
[1643835920691,0.00067858,37442.0,37435.0,0.0532]
[1643835920892,0.29584577,37438.0,37435.0,0.0532]
[1643835921089,0.29584577,37438.0,37427.0,0.6162432]
[1643835921290,0.08303524,37434.0,37428.0,0.24135292]
[1643835921492,0.29584577,37438.0,37430.0,0.27632226]
[1643835921690,0.49751358,37438.0,37427.0,0.4086495]
[1643835921899,0.49751358,37438.0,37427.0,0.0181]
[1643835921900,0.54751358,37438.0,37427.0,0.0181]
[1643835922095,0.353417,37437.0,37427.0,0.01829195]
[1643835922293,0.49751358,37438.0,37427.0,0.01829195]
[1643835922692,0.54751358,37438.0,37427.0,0.01329195]
[1643835923091,0.54751358,37438.0,37430.0,0.001]
[1643835923092,0.08813592,37433.0,37430.0,0.001]
[1643835923493,0.49751358,37438.0,37430.0,0.001]
[1643835923695,0.02155915,37439.0,37430.0,0.58758297]
[1643835924095,0.02155915,37439.0,37431.0,0.0532]
[1643835924296,0.02155915,37439.0,37432.0,0.23904717]
[1643835924539,0.02155915,37439.0,37430.0,0.34227492]
[1643835924742,0.02155915,37439.0,37430.0,0.83526506]
[1643835924939,0.02155915,37439.0,37431.0,0.008435]
[1643835925142,0.02155915,37439.0,37431.0,0.0532]
[1643835925642,0.00046397,37442.0,37437.0,0.25064604]
[1643835925841,0.00046397,37442.0,37438.0,0.0532]
[1643835926444,0.42,37446.0,37439.0,0.00842]
[1643835926641,0.42,37446.0,37443.0,0.35199734]
[1643835926940,0.42,37446.0,37444.0,0.06161]
[1643835927141,0.42,37446.0,37445.0,0.008409]
[1643835927340,0.42,37446.0,37445.0,0.0532]
[1643835928192,0.00067881,37447.0,37445.0,0.0532]
[1643835928593,0.00041481,37447.0,37445.0,0.052936]
[1643835928793,0.00041481,37447.0,37439.0,0.133484]
[1643835928794,0.36480173,37449.0,37439.0,0.133484]
[1643835928992,0.36480173,37449.0,37440.0,0.0492]
[1643835929394,0.20331381,37448.0,37440.0,0.0492]
[1643835929793,0.36480173,37449.0,37440.0,0.0492]
[1643835929994,0.30918146,37451.0,37443.0,0.28077507]
[1643835930195,0.34529318,37454.0,37443.0,0.28077507]
[1643835930595,0.34529318,37454.0,37443.0,0.33077507]
[1643835930794,0.34529318,37454.0,37443.0,0.43077507]
[1643835930994,0.26250863,37452.0,37443.0,0.43077507]
[1643835931198,0.26250863,37452.0,37443.0,0.15]
[1643835931396,0.28431975,37451.0,37442.0,0.22927762]
[1643835931599,0.00046378,37450.0,37440.0,0.21119306]
[1643835931801,0.00046378,37450.0,37439.0,0.233484]
[1643835932042,0.00046378,37450.0,37441.0,0.0001917]
[1643835932242,0.00046378,37450.0,37441.0,0.25960489]
[1643835932444,0.2050128,37451.0,37441.0,0.25960489]
[1643835932641,0.00067879,37449.0,37441.0,0.25960489]
[1643835932843,0.00067879,37449.0,37441.0,0.15960489]
[1643835933146,0.00067879,37449.0,37442.0,0.0492]
[1643835933544,0.00067879,37449.0,37442.0,0.33349503]
[1643835933743,0.31537507,37452.0,37442.0,0.33349503]
[1643835933947,0.31893675,37446.0,37437.0,0.0197471]
[1643835934150,0.32736232,37445.0,37437.0,0.0197471]
[1643835934344,0.03782,37439.0,37437.0,0.0197471]
[1643835934544,0.1287,37439.0,37437.0,0.0197471]
[1643835934743,1.25,37438.0,37437.0,0.0197471]
[1643835934945,1.96405279,37438.0,37437.0,0.0197471]
[1643835935146,1.61063079,37438.0,37437.0,0.0197471]
[1643835935348,1.61063079,37438.0,37430.0,0.001]
[1643835935349,1.5,37437.0,37430.0,0.001]
[1643835935548,0.58170548,37436.0,37430.0,0.001]
[1643835935801,1.5,37437.0,37430.0,0.001]
[1643835935996,0.353422,37436.0,37430.0,0.001]
[1643835936197,0.3779255,37432.0,37430.0,0.001]
[1643835936398,0.20694764,37436.0,37431.0,0.26194108]
[1643835936599,0.0197471,37438.0,37431.0,0.26194108]
[1643835937398,0.0197471,37438.0,37434.0,0.27428501]
[1643835937599,0.0197471,37438.0,37437.0,0.29040892]
[1643835937801,0.0197471,37438.0,37437.0,0.33960892]
[1643835938003,0.01964303,37449.0,37438.0,1.5]
[1643835938201,0.01964303,37449.0,37439.0,0.27654188]
[1643835938515,0.01896457,37449.0,37439.0,0.48773494]
[1643835938804,0.01964315,37449.0,37448.0,1.56434429]
[1643835939001,0.01964315,37449.0,37448.0,0.71354429]
[1643835939200,0.01964315,37449.0,37448.0,0.64681329]
[1643835939642,0.10125993,37460.0,37448.0,0.64681329]
[1643835939843,0.00067861,37450.0,37448.0,0.86304433]
[1643835940144,0.10125993,37460.0,37448.0,0.64681329]
[1643835940542,0.25137208,37459.0,37448.0,0.64681329]
[1643835940744,0.3506069,37458.0,37448.0,0.64681329]
[1643835941145,0.3506069,37458.0,37448.0,0.32313589]
[1643835941146,0.26668943,37454.0,37448.0,0.32313589]
[1643835941343,0.10168548,37452.0,37448.0,0.32313589]
[1643835941744,0.10168548,37452.0,37448.0,0.0492]
[1643835941946,0.10168548,37452.0,37445.0,0.13346]
[1643835942142,0.10168548,37452.0,37448.0,0.00018775]
[1643835942343,0.21202768,37451.0,37448.0,0.00018775]
[1643835943191,0.10168548,37452.0,37448.0,0.00018775]
[1643835943388,0.22042209,37457.0,37448.0,0.00018775]
[1643835943588,0.23558643,37462.0,37446.0,0.31743412]
[1643835943799,0.06773542,37466.0,37449.0,0.06673]
[1643835943800,0.02047895,37460.0,37449.0,0.06673]
[1643835943987,0.02047895,37460.0,37450.0,0.36951604]
[1643835944187,0.02047895,37460.0,37458.0,0.20800234]
[1643835944388,0.02047895,37460.0,37459.0,0.8656526]
[1643835944588,0.02047895,37460.0,37459.0,0.61915864]
[1643835944987,0.02047895,37460.0,37459.0,0.31445973]
[1643835945487,7.895e-05,37460.0,37459.0,0.38117173]
[1643835945686,7.895e-05,37460.0,37459.0,0.136312]
[1643835945888,0.07520247,37460.0,37459.0,0.136312]
[1643835946090,0.35007895,37460.0,37459.0,0.0696]
[1643835946291,0.35007895,37460.0,37445.0,0.13346]
[1643835946292,0.91328156,37460.0,37445.0,0.13346]
[1643835946489,0.91328156,37460.0,37444.0,0.2596013]
[1643835946490,0.55985956,37460.0,37444.0,0.2596013]
[1643835946689,0.25932007,37459.0,37448.0,0.26250621]
[1643835946936,0.28049865,37452.0,37451.0,0.00018394]
[1643835947536,0.37858292,37452.0,37451.0,0.00018394]
[1643835947737,0.75,37451.0,37448.0,0.26219015]
[1643835947940,0.75,37451.0,37434.0,2.9357325]
[1643835947941,0.353422,37450.0,37434.0,2.9357325]
[1643835948149,0.75,37451.0,37434.0,2.9357325]
[1643835948342,0.75,37451.0,37439.0,0.00339551]
[1643835948343,0.05,37450.0,37439.0,0.00339551]
[1643835948744,0.09876313,37452.0,37439.0,0.00339551]
[1643835948945,0.09876313,37452.0,37446.0,0.2383294]
[1643835948946,0.00067886,37452.0,37446.0,0.2383294]
[1643835949343,0.20746728,37462.0,37447.0,0.0492]
[1643835949541,0.00067886,37452.0,37447.0,0.0492]
[1643835949741,0.00067886,37452.0,37448.0,0.24262667]
[1643835950144,0.00067886,37452.0,37446.0,0.2383294]
[1643835950541,0.23066686,37456.0,37452.0,0.30037254]
[1643835950805,0.23066686,37456.0,37447.0,0.066732]
[1643835950806,0.00067886,37452.0,37447.0,0.066732]
[1643835951701,0.23066686,37456.0,37448.0,0.31112387]
[1643835951900,0.00067886,37452.0,37447.0,0.066732]
[1643835952904,0.61973211,37455.0,37444.0,0.24198812]
[1643835953102,0.61973211,37455.0,37443.0,0.01892145]
[1643835953303,0.00067886,37452.0,37443.0,0.01892145]
[1643835953705,0.00067886,37452.0,37441.0,0.00018044]
[1643835953706,0.08770297,37444.0,37441.0,0.00018044]
[1643835954454,0.0667629,37453.0,37441.0,0.00018044]
[1643835954455,0.00067878,37452.0,37441.0,0.00018044]
[1643835954848,0.22644831,37449.0,37441.0,0.23632491]
[1643835955247,0.22644831,37449.0,37441.0,0.00018044]
[1643835955449,0.00067881,37452.0,37445.0,0.31473525]
[1643835956447,0.01811093,37455.0,37445.0,0.31473525]
[1643835956650,0.21266021,37451.0,37443.0,0.24560738]
[1643835956855,0.21266021,37451.0,37442.0,0.37006019]
[1643835956856,0.2246516,37450.0,37442.0,0.37006019]
[1643835957153,0.2246516,37450.0,37443.0,0.0001804]
[1643835957350,2.36820067,37449.0,37443.0,0.0001804]
[1643835958050,0.26266021,37451.0,37446.0,0.26809644]
[1643835958687,0.00046258,37452.0,37446.0,0.26809644]
[1643835958888,0.2246516,37457.0,37446.0,0.26809644]
[1643835959189,0.00067751,37452.0,37446.0,0.26809644]
[1643835959686,0.23119824,37452.0,37446.0,0.26809644]
[1643835960088,0.23052073,37452.0,37446.0,0.26809644]
[1643835960292,0.07433633,37450.0,37443.0,0.0001804]
[1643835960490,0.19503458,37449.0,37443.0,0.0001804]
[1643835960690,0.22697389,37444.0,37443.0,0.0001804]
[1643835960891,0.92697389,37444.0,37443.0,0.0001804]
[1643835961089,0.27697389,37444.0,37443.0,0.0001804]
[1643835961492,0.37504557,37444.0,37443.0,0.0001804]
[1643835961941,1.37504557,37444.0,37443.0,0.0001804]
[1643835962339,1.37504557,37444.0,37441.0,0.00118031]
[1643835962942,1.74232109,37444.0,37441.0,0.00118031]
[1643835963141,0.19803113,37443.0,37441.0,0.00118031]
[1643835963341,1.853422,37442.0,37441.0,0.00118031]
[1643835963540,1.903422,37442.0,37441.0,0.00118031]
[1643835964142,1.903422,37442.0,37441.0,3.1e-07]
[1643835964143,2.16385542,37442.0,37441.0,3.1e-07]
[1643835964345,0.06678988,37439.0,37429.0,0.02113809]
[1643835964549,0.6272736,37438.0,37429.0,0.02113809]
[1643835964743,0.353422,37437.0,37429.0,0.02113809]
[1643835964950,0.0492,37437.0,37429.0,0.02113809]
[1643835965145,0.29899011,37437.0,37430.0,0.23246651]
[1643835965345,0.08819953,37434.0,37430.0,0.001]
[1643835965715,0.353422,37433.0,37430.0,0.001]
[1643835965918,0.2246516,37432.0,37430.0,0.001]
[1643835966119,1.853422,37431.0,37430.0,0.001]
[1643835966313,1.902622,37431.0,37430.0,0.001]
[1643835966515,2.43630778,37431.0,37430.0,0.001]
[1643835966816,1.56680547,37430.0,37421.0,0.002]
[1643835967013,0.0492,37429.0,37421.0,0.002]
[1643835967415,0.0492,37429.0,37424.0,0.00067747]
[1643835967614,0.61754383,37425.0,37424.0,0.00067747]
[1643835967815,0.87220282,37425.0,37424.0,0.00067747]
[1643835968216,1.27562482,37425.0,37424.0,0.00067747]
[1643835968414,0.72562482,37425.0,37421.0,0.002]
[1643835968614,0.43900608,37425.0,37423.0,0.00067747]
[1643835969312,0.42865437,37425.0,37423.0,0.00067747]
[1643835969540,0.21111054,37425.0,37423.0,0.00067747]
[1643835969745,0.21111054,37425.0,37421.0,0.002]
[1643835969940,0.353422,37424.0,37422.0,0.00167748]
[1643835970141,0.14430728,37425.0,37423.0,0.28341206]
[1643835970343,0.25159144,37429.0,37423.0,0.28341206]
[1643835970543,0.2246516,37428.0,37422.0,0.00167748]
[1643835970744,0.60943692,37427.0,37422.0,0.00167748]
[1643835970943,0.353422,37426.0,37422.0,0.001]
[1643835971142,0.25601492,37427.0,37422.0,0.001]
[1643835971442,0.20862113,37423.0,37422.0,0.001]
[1643835971643,0.56204313,37423.0,37422.0,0.001]
[1643835971843,0.61204313,37423.0,37422.0,0.001]
[1643835972047,0.83669473,37423.0,37422.0,0.001]
[1643835972246,0.88589473,37423.0,37422.0,0.001]
[1643835972445,1.5,37422.0,37418.0,0.22866247]
[1643835972644,0.402622,37421.0,37418.0,0.22866247]
[1643835972844,0.353422,37420.0,37418.0,0.22866247]
[1643835973045,0.05,37421.0,37418.0,0.22866247]
[1643835973295,0.32347641,37422.0,37418.0,0.22866247]
[1643835973698,0.2246516,37421.0,37418.0,0.22866247]
[1643835973895,0.2996316,37421.0,37418.0,0.22866247]
[1643835974094,0.353422,37420.0,37418.0,0.22866247]
[1643835974294,0.403422,37420.0,37418.0,0.22866247]
[1643835974495,1.803422,37419.0,37418.0,0.22866247]
[1643835974696,0.353422,37419.0,37418.0,0.22866247]
[1643835974897,0.12498,37421.0,37418.0,0.22866247]
[1643835975499,0.2246516,37422.0,37418.0,0.22866247]